[Event "Open Gent FIDE-rated 2023"]
[Site "Gent, Belgium"]
[Date "2023.07.15"]
[Round "2.4"]
[White "Van de Wynkele, Rudy"]
[Black "Bekker, Stefan"]
[Result "0-1"]
[TimeControl "90'+30''"]
[BlackTitle "FM"]
[WhiteElo "1937"]
[BlackElo "2286"]

1. e4 {[%clk 01:30:30]} {[%emt 00:04:27]} c5 {[%clk 01:31:16]} {[%emt
00:00:20]} 2. d3 {[%clk 01:31:03]} {[%emt 00:00:28]} Nc6 {[%clk 01:31:32]}
{[%emt 00:00:14]} 3. f4 {[%clk 01:31:26]} {[%emt 00:00:07]} e6 {[%clk
01:30:54]} {[%emt 00:01:07]} 4. Nf3 {[%clk 01:31:38]} {[%emt 00:00:18]} d5
{[%clk 01:28:56]} {[%emt 00:02:28]} 5. Be2 {[%clk 01:30:22]} {[%emt 00:01:46]}
Nf6 {[%clk 01:26:46]} {[%emt 00:02:40]} 6. e5 {[%clk 01:20:33]} {[%emt
00:10:20]} Ng8 {[%clk 01:24:57]} {[%emt 00:02:19]} 7. c3 {[%clk 01:20:21]}
{[%emt 00:00:42]} Nge7 {[%clk 01:14:31]} {[%emt 00:10:55]} 8. Na3 {[%clk
01:20:18]} {[%emt 00:00:31]} Rb8 {[%clk 01:11:16]} {[%emt 00:03:46]} 9. O-O
{[%clk 01:17:21]} {[%emt 00:03:27]} b5 {[%clk 01:11:02]} {[%emt 00:00:44]} 10.
Nc2 {[%clk 01:16:51]} {[%emt 00:00:58]} Qb6 {[%clk 01:05:09]} {[%emt 00:06:25]}
11. Kh1 {[%clk 01:16:51]} {[%emt 00:00:30]} b4 {[%clk 00:55:49]} {[%emt
00:09:49]} 12. Qe1 {[%clk 01:11:55]} {[%emt 00:05:26]} a5 {[%clk 00:49:49]}
{[%emt 00:06:31]} 13. Qf2 {[%clk 01:10:27]} {[%emt 00:01:58]} a4 {[%clk
00:49:18]} {[%emt 00:01:01]} 14. cxb4 {[%clk 00:51:20]} {[%emt 00:19:37]} Nxb4
{[%clk 00:49:03]} {[%emt 00:00:44]} 15. Nxb4 {[%clk 00:49:07]} {[%emt
00:02:43]} Qxb4 {[%clk 00:49:05]} {[%emt 00:00:27]} 16. a3 {[%clk 00:48:14]}
{[%emt 00:01:24]} Qb6 {[%clk 00:48:05]} {[%emt 00:01:29]} 17. Bd1 {[%clk
00:45:26]} {[%emt 00:03:19]} Bd7 {[%clk 00:48:11]} {[%emt 00:00:23]} 18. Bc2
{[%clk 00:45:49]} {[%emt 00:00:07]} h5 {[%clk 00:42:33]} {[%emt 00:06:08]} 19.
Rb1 {[%clk 00:40:59]} {[%emt 00:05:20]} Nf5 {[%clk 00:39:19]} {[%emt 00:03:43]}
20. Rd1 {[%clk 00:35:01]} {[%emt 00:06:29]} Be7 {[%clk 00:34:46]} {[%emt
00:05:03]} 21. d4 {[%clk 00:28:43]} {[%emt 00:06:48]} Nxd4 {[%clk 00:27:02]}
{[%emt 00:08:13]} 22. Nxd4 {[%clk 00:25:38]} {[%emt 00:03:36]} cxd4 {[%clk
00:27:27]} {[%emt 00:00:06]} 23. Qxd4 {[%clk 00:22:33]} {[%emt 00:03:35]} Bc5
{[%clk 00:27:00]} {[%emt 00:00:57]} 24. Qd3 {[%clk 00:22:20]} {[%emt 00:00:43]}
g6 {[%clk 00:27:03]} {[%emt 00:00:27]} 25. b4 {[%clk 00:22:36]} {[%emt
00:00:15]} axb3 {[%clk 00:20:16]} {[%emt 00:07:17]} 26. Rxb3 {[%clk 00:22:40]}
{[%emt 00:00:25]} Qa7 {[%clk 00:20:40]} {[%emt 00:00:06]} 27. Rxb8+ {[%clk
00:21:27]} {[%emt 00:01:44]} Qxb8 {[%clk 00:21:04]} {[%emt 00:00:06]} 28. Be3
{[%clk 00:19:17]} {[%emt 00:02:40]} Qa7 {[%clk 00:20:08]} {[%emt 00:01:27]} 29.
Bxc5 {[%clk 00:15:56]} {[%emt 00:03:51]} Qxc5 {[%clk 00:20:31]} {[%emt
00:00:05]} 30. Rb1 {[%clk 00:15:42]} {[%emt 00:00:44]} O-O {[%clk 00:20:55]}
{[%emt 00:00:06]} 31. h3 {[%clk 00:06:43]} {[%emt 00:09:30]} Rc8 {[%clk
00:21:09]} {[%emt 00:00:15]} 32. Bd1 {[%clk 00:06:31]} {[%emt 00:00:42]} Qf2
{[%clk 00:15:57]} {[%emt 00:05:42]} 33. Bf3 {[%clk 00:04:55]} {[%emt 00:02:06]}
Rc4 {[%clk 00:15:39]} {[%emt 00:00:48]} 34. Qe2 {[%clk 00:00:40]} {[%emt
00:04:46]} Qxe2 {[%clk 00:15:45]} {[%emt 00:00:24]} 35. Bxe2 {[%clk 00:01:08]}
{[%emt 00:00:02]} Rxf4 {[%clk 00:16:01]} {[%emt 00:00:14]} 36. Bf3 {[%clk
00:01:25]} {[%emt 00:00:14]} Rc4 {[%emt 00:01:07]} 37. Be2 {[%emt 00:00:03]}
Rc8 {[%emt 00:00:09]} 0-1

[Event "Open Gent FIDE-rated 2023"]
[Site "Gent, Belgium"]
[Date "2023.07.16"]
[Round "3.1"]
[White "Nemegeer, Arne"]
[Black "Ikonnikov, Vyacheslav"]
[Result "1/2-1/2"]
[TimeControl "90'+30''"]
[BlackTitle "GM"]
[WhiteElo "2043"]
[BlackElo "2467"]

1. e4 {[%clk 01:30:57]} {[%emt 00:00:02]} c5 {[%clk 01:30:39]} {[%emt
00:00:22]} 2. Nf3 {[%clk 01:31:23]} {[%emt 00:00:04]} Nc6 {[%clk 01:30:57]}
{[%emt 00:00:12]} 3. Bb5 {[%clk 01:31:48]} {[%emt 00:00:05]} Na5 {[%clk
01:31:10]} {[%emt 00:00:17]} 4. c3 {[%clk 01:32:13]} {[%emt 00:00:05]} a6
{[%clk 01:31:06]} {[%emt 00:00:35]} 5. Be2 {[%clk 01:32:39]} {[%emt 00:00:03]}
Nf6 {[%clk 01:26:47]} {[%emt 00:04:49]} 6. e5 {[%clk 01:30:15]} {[%emt
00:02:54]} Nd5 {[%clk 01:27:08]} {[%emt 00:00:09]} 7. d4 {[%clk 01:30:42]}
{[%emt 00:00:03]} cxd4 {[%clk 01:27:14]} {[%emt 00:00:23]} 8. cxd4 {[%clk
01:31:09]} {[%emt 00:00:03]} e6 {[%clk 01:27:05]} {[%emt 00:00:39]} 9. O-O
{[%clk 01:30:17]} {[%emt 00:01:22]} b5 {[%clk 01:18:58]} {[%emt 00:08:37]} 10.
Nc3 {[%clk 01:21:48]} {[%emt 00:09:00]} Bb7 {[%clk 01:17:58]} {[%emt 00:01:30]}
11. Bg5 {[%clk 01:16:34]} {[%emt 00:05:44]} Qb6 {[%clk 01:14:24]} {[%emt
00:04:04]} 12. Rc1 {[%clk 01:15:32]} {[%emt 00:01:32]} h6 {[%clk 01:14:35]}
{[%emt 00:00:19]} 13. Bd2 {[%clk 01:11:34]} {[%emt 00:04:27]} Nxc3 {[%clk
01:09:11]} {[%emt 00:05:55]} 14. Bxc3 {[%clk 01:09:00]} {[%emt 00:03:04]} b4
{[%clk 01:07:18]} {[%emt 00:02:21]} 15. Bd2 {[%clk 01:05:41]} {[%emt 00:03:50]}
Be7 {[%clk 01:07:08]} {[%emt 00:00:40]} 16. Be3 {[%clk 01:04:00]} {[%emt
00:02:11]} Bd5 {[%clk 01:06:39]} {[%emt 00:01:00]} 17. b3 {[%clk 01:01:59]}
{[%emt 00:02:31]} Qb7 {[%clk 01:01:01]} {[%emt 00:06:07]} 18. Ne1 {[%clk
00:48:22]} {[%emt 00:14:07]} O-O {[%clk 00:43:13]} {[%emt 00:18:17]} 19. Bf3
{[%clk 00:43:45]} {[%emt 00:05:07]} Bxf3 {[%clk 00:33:12]} {[%emt 00:10:32]} 20.
Qxf3 {[%clk 00:43:25]} {[%emt 00:00:50]} Qxf3 {[%clk 00:33:07]} {[%emt
00:00:35]} 21. Nxf3 {[%clk 00:43:49]} {[%emt 00:00:05]} Rfc8 {[%clk 00:33:31]}
{[%emt 00:00:06]} 22. Rxc8+ {[%clk 00:39:03]} {[%emt 00:05:16]} Rxc8 {[%clk
00:33:54]} {[%emt 00:00:07]} 23. Rc1 {[%clk 00:39:31]} {[%emt 00:00:02]} Rxc1+
{[%clk 00:27:21]} {[%emt 00:07:03]} 24. Bxc1 {[%clk 00:39:06]} {[%emt
00:00:55]} Kf8 {[%clk 00:27:47]} {[%emt 00:00:04]} 25. Kf1 {[%clk 00:37:50]}
{[%emt 00:01:46]} Ke8 {[%clk 00:28:12]} {[%emt 00:00:06]} 26. Ke2 {[%clk
00:38:13]} {[%emt 00:00:07]} d6 {[%clk 00:28:37]} {[%emt 00:00:04]} 27. Be3
{[%clk 00:26:55]} {[%emt 00:11:48]} Kd7 {[%clk 00:27:39]} {[%emt 00:01:28]} 28.
Kd3 {[%clk 00:26:42]} {[%emt 00:00:43]} Kc6 {[%clk 00:23:43]} {[%emt 00:04:25]}
29. Ke4 {[%clk 00:26:39]} {[%emt 00:00:33]} Nb7 {[%clk 00:23:48]} {[%emt
00:00:26]} 30. g4 {[%clk 00:20:45]} {[%emt 00:06:25]} a5 {[%clk 00:17:17]}
{[%emt 00:07:01]} 31. h4 {[%clk 00:12:58]} {[%emt 00:08:17]} d5+ {[%clk
00:17:09]} {[%emt 00:00:39]} 32. Kd3 {[%clk 00:13:07]} {[%emt 00:00:21]} Kd7
{[%clk 00:17:34]} {[%emt 00:00:05]} 33. h5 {[%clk 00:12:33]} {[%emt 00:01:03]}
Nd8 {[%clk 00:17:58]} {[%emt 00:00:06]} 34. Nh2 {[%clk 00:08:27]} {[%emt
00:04:36]} Bf8 {[%clk 00:14:51]} {[%emt 00:03:37]} 35. f4 {[%clk 00:08:27]}
{[%emt 00:00:31]} g6 {[%clk 00:14:48]} {[%emt 00:00:34]} 36. Nf3 {[%clk
00:08:27]} {[%emt 00:00:30]} Nc6 {[%clk 00:09:27]} {[%emt 00:05:50]} 37. Bf2
{[%clk 00:07:32]} {[%emt 00:01:25]} gxh5 {[%clk 00:09:23]} {[%emt 00:00:34]} 38.
gxh5 {[%clk 00:07:55]} {[%emt 00:00:07]} Ne7 {[%clk 00:09:50]} {[%emt
00:00:04]} 39. Nh4 {[%clk 00:08:05]} {[%emt 00:00:20]} Bg7 {[%clk 00:09:30]}
{[%emt 00:00:49]} 40. Be3 {[%clk 00:07:38]} {[%emt 00:00:56]} f5 {[%clk
00:08:25]} {[%emt 00:01:35]} 41. Nf3 {[%clk 00:05:42]} {[%emt 00:02:26]} Nc6
{[%clk 00:08:17]} {[%emt 00:00:38]} 42. Bf2 {[%clk 00:05:35]} {[%emt 00:00:37]}
Na7 {[%clk 00:08:12]} {[%emt 00:00:34]} 43. Ng1 {[%clk 00:05:28]} {[%emt
00:00:37]} Nb5 {[%clk 00:07:45]} {[%emt 00:00:57]} 44. Ne2 {[%clk 00:05:54]}
{[%emt 00:00:03]} Bf8 {[%clk 00:07:00]} {[%emt 00:01:15]} 45. Bh4 {[%clk
00:06:18]} {[%emt 00:00:06]} Nc7 {[%clk 00:07:06]} {[%emt 00:00:25]} 46. Ke3
{[%clk 00:06:23]} {[%emt 00:00:25]} Be7 {[%clk 00:05:35]} {[%emt 00:02:01]} 47.
Bxe7 {[%clk 00:06:48]} {[%emt 00:00:04]} Kxe7 {[%clk 00:06:02]} {[%emt
00:00:03]} 48. Kd3 {[%clk 00:06:42]} {[%emt 00:00:36]} Kd7 {[%clk 00:05:58]}
{[%emt 00:00:34]} 49. Ke3 {[%clk 00:07:08]} {[%emt 00:00:05]} Kc6 {[%clk
00:06:17]} {[%emt 00:00:11]} 50. Kd2 {[%clk 00:07:11]} {[%emt 00:00:27]} Kb5
{[%clk 00:06:23]} {[%emt 00:00:24]} 51. Kd3 {[%clk 00:07:36]} {[%emt 00:00:05]}
a4 {[%clk 00:05:32]} {[%emt 00:01:22]} 52. Kd2 {[%clk 00:07:51]} {[%emt
00:00:14]} a3 {[%clk 00:05:35]} {[%emt 00:00:28]} 53. Kd3 {[%clk 00:08:12]}
{[%emt 00:00:09]} Ne8 {[%clk 00:04:40]} {[%emt 00:01:25]} 54. Kd2 {[%clk
00:08:06]} {[%emt 00:00:36]} 1/2-1/2

[Event "Open Gent FIDE-rated 2023"]
[Site "Gent, Belgium"]
[Date "2023.07.16"]
[Round "3.2"]
[White "Goudriaan, Etienne"]
[Black "Leemans, Huub"]
[Result "1-0"]
[TimeControl "90'+30''"]
[WhiteTitle "IM"]
[WhiteElo "2322"]
[BlackElo "2023"]

1. d4 {[%emt 01:20:20]} d5 {[%emt 00:00:23]} 2. c4 {[%emt 00:00:16]} e6 {[%emt
00:00:28]} 3. Nf3 {[%emt 00:00:08]} Nf6 {[%emt 00:01:08]} 4. g3 {[%emt
00:00:10]} dxc4 {[%emt 00:01:53]} 5. Bg2 {[%emt 00:01:01]} c5 {[%emt 00:00:48]}
6. O-O {[%emt 00:01:36]} Nc6 {[%emt 00:01:05]} 7. dxc5 {[%emt 00:00:14]} Qxd1
{[%emt 00:05:28]} 8. Rxd1 {[%emt 00:02:46]} Bxc5 {[%emt 00:00:32]} 9. Nbd2
{[%emt 00:00:08]} c3 {[%emt 00:11:44]} 10. bxc3 {[%emt 00:01:03]} O-O {[%emt
00:09:35]} 11. Nb3 {[%emt 00:01:12]} Be7 {[%emt 00:08:00]} 12. Nfd4 {[%emt
00:02:25]} Bd7 {[%emt 00:06:20]} 13. a4 {[%emt 00:01:27]} Rfd8 {[%emt
00:08:02]} 14. Nb5 {[%emt 00:03:16]} a6 {[%emt 00:07:42]} 15. Nd6 {[%emt
00:00:42]} Bxd6 {[%emt 00:00:59]} 16. Rxd6 {[%emt 00:00:18]} Be8 {[%emt
00:00:36]} 17. Rxd8 {[%emt 00:03:09]} Rxd8 {[%emt 00:01:39]} 18. Bg5 {[%emt
00:00:38]} b6 {[%emt 00:13:56]} 19. Be3 {[%emt 00:07:10]} Rb8 {[%emt 00:05:13]}
20. Rb1 {[%emt 00:05:09]} Ne7 {[%emt 00:04:50]} 21. Nc5 {[%emt 00:04:52]} Ned5
{[%emt 00:00:32]} 22. a5 {[%emt 00:03:27]} Bb5 {[%emt 00:04:06]} 23. axb6
{[%emt 00:02:00]} Nxc3 {[%emt 00:03:23]} 24. Rxb5 {[%emt 00:02:11]} axb5 {[%emt
00:00:17]} 25. Na6 {[%emt 00:00:25]} Nd7 {[%emt 00:01:41]} 26. b7 {[%emt
00:02:40]} b4 {[%emt 00:01:22]} 27. Nxb4 {[%emt 00:00:46]} 1-0

[Event "Open Gent FIDE-rated 2023"]
[Site "Gent, Belgium"]
[Date "2023.07.16"]
[Round "3.3"]
[White "Van Der Leij, Arjan"]
[Black "van Osch, Mees"]
[Result "0-1"]
[TimeControl "90'+30''"]
[BlackTitle "FM"]
[WhiteElo "2030"]
[BlackElo "2320"]

1. e4 {[%clk 01:30:57]} {[%emt 00:00:02]} c5 {[%clk 01:30:58]} {[%emt
00:00:03]} 2. c3 {[%clk 01:31:07]} {[%emt 00:00:20]} Nf6 {[%clk 01:31:24]}
{[%emt 00:00:04]} 3. e5 {[%clk 01:31:30]} {[%emt 00:00:07]} Nd5 {[%clk
01:31:51]} {[%emt 00:00:03]} 4. d4 {[%clk 01:31:51]} {[%emt 00:00:09]} cxd4
{[%clk 01:32:17]} {[%emt 00:00:04]} 5. cxd4 {[%clk 01:32:12]} {[%emt 00:00:10]}
d6 {[%clk 01:32:34]} {[%emt 00:00:13]} 6. Nf3 {[%clk 01:32:16]} {[%emt
00:00:26]} Nc6 {[%clk 01:33:00]} {[%emt 00:00:04]} 7. Bc4 {[%clk 01:32:35]}
{[%emt 00:00:11]} Nb6 {[%clk 01:33:25]} {[%emt 00:00:05]} 8. Bb5 {[%clk
01:32:14]} {[%emt 00:00:50]} dxe5 {[%clk 01:33:50]} {[%emt 00:00:06]} 9. Nxe5
{[%clk 01:32:27]} {[%emt 00:00:17]} Bd7 {[%clk 01:34:17]} {[%emt 00:00:04]} 10.
Bxc6 {[%clk 01:32:07]} {[%emt 00:00:49]} Bxc6 {[%clk 01:34:07]} {[%emt
00:00:39]} 11. Nxc6 {[%clk 01:32:21]} {[%emt 00:00:16]} bxc6 {[%clk 01:34:36]}
{[%emt 00:00:01]} 12. O-O {[%clk 01:29:17]} {[%emt 00:03:34]} g6 {[%clk
01:35:02]} {[%emt 00:00:05]} 13. Nc3 {[%clk 01:29:12]} {[%emt 00:00:34]} Bg7
{[%clk 01:35:27]} {[%emt 00:00:05]} 14. Be3 {[%clk 01:29:19]} {[%emt 00:00:20]}
O-O {[%clk 01:35:52]} {[%emt 00:00:09]} 15. b3 {[%clk 01:25:01]} {[%emt
00:04:48]} Nd5 {[%clk 01:35:35]} {[%emt 00:00:47]} 16. Nxd5 {[%clk 01:22:17]}
{[%emt 00:03:14]} cxd5 {[%clk 01:35:46]} {[%emt 00:00:19]} 17. Qd2 {[%clk
01:22:24]} {[%emt 00:00:22]} Qb6 {[%clk 01:34:58]} {[%emt 00:01:18]} 18. Rac1
{[%clk 01:21:59]} {[%emt 00:00:55]} Rfc8 {[%clk 01:34:13]} {[%emt 00:01:15]} 19.
Rc5 {[%clk 01:20:08]} {[%emt 00:02:21]} Rxc5 {[%clk 01:33:16]} {[%emt
00:01:27]} 20. dxc5 {[%clk 01:20:27]} {[%emt 00:00:11]} Qc6 {[%clk 01:33:34]}
{[%emt 00:00:12]} 21. Rc1 {[%clk 01:16:10]} {[%emt 00:04:46]} e5 {[%clk
01:28:27]} {[%emt 00:05:37]} 22. Qa5 {[%clk 01:11:22]} {[%emt 00:05:19]} d4
{[%clk 01:24:52]} {[%emt 00:04:04]} 23. Bd2 {[%clk 01:08:29]} {[%emt 00:03:23]}
e4 {[%clk 01:23:41]} {[%emt 00:01:42]} 24. b4 {[%clk 01:07:59]} {[%emt
00:01:00]} Qe6 {[%clk 01:23:51]} {[%emt 00:00:19]} 25. b5 {[%clk 01:01:40]}
{[%emt 00:06:49]} e3 {[%clk 01:18:34]} {[%emt 00:05:47]} 26. fxe3 {[%clk
01:01:35]} {[%emt 00:00:35]} dxe3 {[%clk 01:18:58]} {[%emt 00:00:06]} 27. Be1
{[%clk 01:01:40]} {[%emt 00:00:25]} Bd4 {[%clk 01:16:32]} {[%emt 00:02:56]} 28.
Bg3 {[%clk 00:22:37]} {[%emt 00:39:33]} e2+ {[%clk 00:49:19]} {[%emt 00:27:43]}
29. Bf2 {[%clk 00:21:41]} {[%emt 00:01:25]} Qf6 {[%clk 00:47:58]} {[%emt
00:01:51]} 30. Qe1 {[%clk 00:17:38]} {[%emt 00:04:33]} Re8 {[%clk 00:48:23]}
{[%emt 00:00:05]} 31. c6 {[%clk 00:15:08]} {[%emt 00:03:00]} Qxf2+ {[%emt
00:00:55]} 0-1

[Event "Open Gent FIDE-rated 2023"]
[Site "Gent, Belgium"]
[Date "2023.07.16"]
[Round "3.4"]
[White "Bekker, Stefan"]
[Black "Paul, Spruit"]
[Result "1/2-1/2"]
[TimeControl "90'+30''"]
[WhiteTitle "FM"]
[WhiteElo "2286"]
[BlackElo "2015"]

1. Nf3 {[%clk 01:30:56]} {[%emt 00:00:02]} d5 {[%clk 01:30:43]} {[%emt
00:00:18]} 2. c4 {[%clk 01:29:50]} {[%emt 00:01:36]} d4 {[%clk 01:30:32]}
{[%emt 00:00:41]} 3. b4 {[%clk 01:30:12]} {[%emt 00:00:07]} a5 {[%clk
01:21:24]} {[%emt 00:09:39]} 4. b5 {[%clk 01:29:58]} {[%emt 00:00:44]} c5
{[%clk 01:21:07]} {[%emt 00:00:47]} 5. g3 {[%clk 01:30:14]} {[%emt 00:00:13]}
Nd7 {[%clk 01:16:56]} {[%emt 00:04:41]} 6. Bg2 {[%clk 01:27:29]} {[%emt
00:03:15]} e5 {[%clk 01:16:53]} {[%emt 00:00:34]} 7. d3 {[%clk 01:27:51]}
{[%emt 00:00:09]} Ngf6 {[%clk 01:16:58]} {[%emt 00:00:25]} 8. O-O {[%clk
01:27:35]} {[%emt 00:00:45]} Be7 {[%clk 01:15:39]} {[%emt 00:01:49]} 9. a4
{[%clk 01:27:01]} {[%emt 00:01:04]} O-O {[%clk 01:14:31]} {[%emt 00:01:38]} 10.
e3 {[%clk 01:23:58]} {[%emt 00:03:32]} Bd6 {[%clk 01:06:55]} {[%emt 00:08:06]}
11. Ra2 {[%clk 01:19:52]} {[%emt 00:04:36]} Rb8 {[%clk 01:06:23]} {[%emt
00:01:02]} 12. Re1 {[%clk 01:18:29]} {[%emt 00:01:52]} b6 {[%clk 01:02:36]}
{[%emt 00:04:18]} 13. exd4 {[%clk 00:53:21]} {[%emt 00:25:37]} exd4 {[%clk
00:58:10]} {[%emt 00:04:57]} 14. Rae2 {[%clk 00:34:16]} {[%emt 00:19:35]} Re8
{[%clk 00:54:46]} {[%emt 00:03:55]} 15. Rxe8+ {[%clk 00:26:14]} {[%emt
00:08:31]} Nxe8 {[%clk 00:55:11]} {[%emt 00:00:05]} 16. Bg5 {[%clk 00:25:52]}
{[%emt 00:00:52]} Nef6 {[%clk 00:49:48]} {[%emt 00:05:52]} 17. Nbd2 {[%clk
00:19:29]} {[%emt 00:06:54]} h6 {[%clk 00:38:09]} {[%emt 00:12:10]} 18. Bxf6
{[%clk 00:19:53]} {[%emt 00:00:06]} Nxf6 {[%clk 00:38:26]} {[%emt 00:00:13]} 19.
Qe2 {[%clk 00:14:15]} {[%emt 00:06:09]} Bb7 {[%clk 00:29:53]} {[%emt 00:09:02]}
20. Nh4 {[%clk 00:14:16]} {[%emt 00:00:29]} Bxg2 {[%clk 00:29:39]} {[%emt
00:00:44]} 21. Kxg2 {[%clk 00:14:41]} {[%emt 00:00:05]} g6 {[%clk 00:18:30]}
{[%emt 00:11:39]} 22. Ne4 {[%clk 00:13:49]} {[%emt 00:01:22]} Kg7 {[%clk
00:17:30]} {[%emt 00:01:30]} 23. Nxf6 {[%clk 00:13:53]} {[%emt 00:00:26]} Qxf6
{[%clk 00:17:32]} {[%emt 00:00:28]} 24. Qf3 {[%clk 00:14:20]} {[%emt 00:00:03]}
Qxf3+ {[%clk 00:17:11]} {[%emt 00:00:51]} 25. Nxf3 {[%clk 00:14:20]} {[%emt
00:00:30]} Kf8 {[%clk 00:16:38]} {[%emt 00:01:03]} 26. Nd2 {[%clk 00:08:00]}
{[%emt 00:06:49]} Re8 {[%clk 00:16:27]} {[%emt 00:00:41]} 27. Rxe8+ {[%clk
00:08:24]} {[%emt 00:00:07]} Kxe8 {[%clk 00:16:53]} {[%emt 00:00:04]} 28. Ne4
{[%clk 00:08:31]} {[%emt 00:00:23]} Ke7 {[%clk 00:16:10]} {[%emt 00:01:13]} 29.
Kf3 {[%clk 00:08:09]} {[%emt 00:00:52]} f5 {[%clk 00:14:03]} {[%emt 00:02:37]}
30. Nd2 {[%clk 00:08:03]} {[%emt 00:00:35]} Kf6 {[%clk 00:14:15]} {[%emt
00:00:18]} 31. h3 {[%clk 00:08:17]} {[%emt 00:00:16]} h5 {[%clk 00:14:14]}
{[%emt 00:00:31]} 32. h4 {[%clk 00:05:48]} {[%emt 00:03:00]} Bf8 {[%clk
00:12:52]} {[%emt 00:01:52]} 33. Ke2 {[%clk 00:06:08]} {[%emt 00:00:10]} Bh6
{[%clk 00:12:53]} {[%emt 00:00:28]} 34. Nf3 {[%clk 00:06:08]} {[%emt 00:00:30]}
Ke6 {[%clk 00:12:03]} {[%emt 00:01:20]} 35. Ng1 {[%clk 00:06:28]} {[%emt
00:00:10]} Ke5 {[%clk 00:11:53]} {[%emt 00:00:41]} 36. Kf3 {[%clk 00:06:40]}
{[%emt 00:00:18]} Ke6 {[%clk 00:11:50]} {[%emt 00:00:33]} 37. Nh3 {[%clk
00:06:49]} {[%emt 00:00:20]} Ke5 {[%clk 00:10:43]} {[%emt 00:01:38]} 38. Kg2
{[%clk 00:06:57]} {[%emt 00:00:22]} Kf6 {[%clk 00:10:55]} {[%emt 00:00:17]} 39.
Ng1 {[%clk 00:06:25]} {[%emt 00:01:02]} Ke6 {[%clk 00:10:55]} {[%emt 00:00:31]}
40. Kf1 {[%clk 00:06:34]} {[%emt 00:00:21]} Kf6 {[%clk 00:11:18]} {[%emt
00:00:07]} 41. Ke2 {[%clk 00:06:44]} {[%emt 00:00:19]} Ke6 {[%clk 00:11:38]}
{[%emt 00:00:10]} 42. Kf3 {[%clk 00:06:55]} {[%emt 00:00:19]} Kf6 {[%clk
00:11:54]} {[%emt 00:00:14]} 43. Ke2 {[%clk 00:06:01]} {[%emt 00:01:23]} Ke6
{[%clk 00:12:15]} {[%emt 00:00:09]} 44. Nf3 {[%clk 00:05:42]} {[%emt 00:00:49]}
Kf6 {[%clk 00:12:31]} {[%emt 00:00:14]} 45. Ne1 {[%clk 00:05:41]} {[%emt
00:00:30]} Ke6 {[%clk 00:12:51]} {[%emt 00:00:11]} 46. f3 {[%clk 00:04:41]}
{[%emt 00:01:30]} Bf8 {[%clk 00:12:24]} {[%emt 00:00:58]} 47. Kf2 {[%clk
00:05:00]} {[%emt 00:00:12]} Bd6 {[%clk 00:10:37]} {[%emt 00:02:16]} 48. Kg2
{[%clk 00:05:23]} {[%emt 00:00:07]} Kf7 {[%clk 00:10:11]} {[%emt 00:00:56]} 49.
Kh3 {[%clk 00:05:47]} {[%emt 00:00:05]} Be5 {[%clk 00:09:49]} {[%emt 00:00:52]}
50. Ng2 {[%clk 00:03:52]} {[%emt 00:02:26]} Bd6 {[%clk 00:07:27]} {[%emt
00:02:52]} 51. g4 {[%clk 00:04:17]} {[%emt 00:00:04]} Bc7 {[%clk 00:07:29]}
{[%emt 00:00:27]} 52. gxh5 {[%clk 00:04:37]} {[%emt 00:00:10]} gxh5 {[%clk
00:07:50]} {[%emt 00:00:09]} 53. f4 {[%clk 00:05:06]} Ke6 {[%clk 00:04:57]}
{[%emt 00:03:24]} 54. Kg3 {[%clk 00:05:31]} {[%emt 00:00:06]} Bd8 {[%clk
00:04:47]} {[%emt 00:00:40]} 55. Ne1 {[%clk 00:05:56]} {[%emt 00:00:04]} Bf6
{[%clk 00:04:59]} {[%emt 00:00:17]} 56. Nf3 {[%clk 00:06:23]} {[%emt 00:00:04]}
Bg7 {[%clk 00:04:33]} {[%emt 00:00:56]} 57. Ng1 {[%clk 00:06:25]} {[%emt
00:00:28]} Bf6 {[%clk 00:04:39]} {[%emt 00:00:24]} 58. Kh3 {[%clk 00:06:51]}
{[%emt 00:00:04]} Bg7 {[%clk 00:04:26]} {[%emt 00:00:43]} 59. Ne2 {[%clk
00:07:13]} {[%emt 00:00:08]} Kf6 {[%clk 00:04:41]} {[%emt 00:00:15]} 60. Nc1
{[%clk 00:07:00]} {[%emt 00:00:43]} Bf8 {[%clk 00:04:37]} {[%emt 00:00:34]} 61.
Ne2 {[%clk 00:06:33]} {[%emt 00:00:56]} Bd6 {[%clk 00:04:17]} {[%emt 00:00:50]}
62. Kg2 {[%clk 00:06:34]} {[%emt 00:00:29]} Bc7 {[%clk 00:03:47]} {[%emt
00:01:01]} 63. Ng3 {[%clk 00:06:20]} {[%emt 00:00:43]} Kg6 {[%clk 00:04:11]}
{[%emt 00:00:06]} 64. Kf3 {[%clk 00:06:42]} {[%emt 00:00:08]} Bd8 {[%clk
00:04:02]} {[%emt 00:00:39]} 65. Ne2 {[%clk 00:04:44]} {[%emt 00:02:28]}
1/2-1/2